fUSD/lending_fUSD_20260517
["ID","MTS","AMOUNT","RATE_DAILY","PERIOD"]
[422504401,1779002566000,-876642.7843485,0.00031895,2]
[422504404,1779002566000,-160.0,0.00032,2]
[422504402,1779002566000,-2052.81667927,0.000319,2]
[422504406,1779002566000,-160.0,0.00032,2]
[422504405,1779002566000,-160.0,0.00032,2]
[422504408,1779002566000,-160.0,0.00032,2]
[422504403,1779002566000,-17911.19317347,0.00032,2]
[422504409,1779002566000,-160.0,0.00032,2]
[422504410,1779002566000,-160.0,0.00032,2]
[422504411,1779002566000,-400.06,0.00032002,7]
[422504412,1779002566000,-324.5,0.00032002,7]
[422504413,1779002566000,-168.02,0.00032032,7]
[422504407,1779002566000,-160.0,0.00032,2]
[422504414,1779002566000,-151.43,0.00032051,2]
[422504415,1779002566000,-58368.23039782,0.000321,2]
[422504417,1779002577000,523.79,0.000343,14]
[422504418,1779002577000,159.88,0.00035999,30]
[422504419,1779002577000,158.34,0.00029642,30]
[422504420,1779002577000,166.76,0.00029523,30]
[422504421,1779002577000,158.34,0.00030773,30]
[422504416,1779002577000,158.62,0.00032909,30]
[422504423,1779002577000,158.34,0.00031904,30]
[422504422,1779002577000,166.76,0.00030476,30]
[422504427,1779002577000,158.34,0.00034166,30]
[422504424,1779002577000,166.76,0.00031428,30]
[422504426,1779002577000,166.76,0.0003238,30]
[422504425,1779002577000,158.34,0.00033035,30]
[422504432,1779002578000,250.14,0.00027642,30]
[422504431,1779002578000,201.89,0.00029433,30]
[422504430,1779002578000,201.89,0.00027642,30]
[422504429,1779002578000,166.76,0.00034285,30]
[422504428,1779002578000,166.76,0.00033332,30]
[422504433,1779002607000,500.0,0.00032099,120]
[422504434,1779002607000,500.0,0.00032099,120]
[422504436,1779002607000,500.0,0.00032099,120]
[422504435,1779002607000,500.0,0.00032099,120]
[422504442,1779002608000,183.234,0.00033119,34]
[422504441,1779002608000,1930.125,0.00033119,34]
[422504440,1779002608000,500.0,0.00032099,120]
[422504439,1779002608000,500.0,0.00032099,120]
[422504438,1779002608000,500.0,0.00032099,120]
[422504437,1779002608000,500.0,0.00032099,120]
[422504443,1779002609000,394.9514487,0.00032099,120]
[422504444,1779002633000,170.2,0.00034919,30]
[422504446,1779002791000,151.0,0.000165,30]
[422504471,1779003031000,-160.33,0.00025079,7]
[422504470,1779003031000,-158.39,0.00025049,7]
[422504452,1779003031000,-715.84064662,0.00022407,2]
[422504454,1779003031000,-1694.55120652,0.00022407,2]
[422504453,1779003031000,-978.7105599,0.00022407,2]
[422504456,1779003031000,-1213.01,0.00024174,2]
[422504461,1779003031000,-161.57,0.00024658,2]
[422504455,1779003031000,-1694.55120652,0.00022407,2]
[422504458,1779003031000,-163.41,0.00024658,2]
[422504459,1779003031000,-160.33,0.00024658,2]
[422504460,1779003031000,-158.39,0.00024658,2]
[422504462,1779003031000,-153.64,0.00024658,2]
[422504463,1779003031000,-202.84,0.00024658,2]
[422504467,1779003031000,-156.73,0.00024658,2]
[422504464,1779003031000,-157.23,0.00024658,2]
[422504466,1779003031000,-155.32,0.00024658,2]
[422504469,1779003031000,-155.32,0.00024946,7]
[422504468,1779003031000,-153.64,0.00024946,7]
[422504465,1779003031000,-211.8,0.00024658,2]
[422504457,1779003031000,-300.18499513,0.00024647,2]
[422504528,1779003032000,-159.3,0.00028874,2]
[422504527,1779003032000,-2080.17592889,0.00028829,2]
[422504504,1779003032000,-1500.0,0.00027397,2]
[422504516,1779003032000,-288.88,0.00027857,2]
[422504514,1779003032000,-150.0,0.00027837,2]
[422504529,1779003032000,-157.58,0.00028877,2]
[422504518,1779003032000,-1296.28,0.00028008,2]
[422504530,1779003032000,-158.39,0.0002888,2]
[422504534,1779003032000,-158.39,0.00028919,7]
[422504524,1779003032000,-166.66,0.00028217,30]
[422504525,1779003032000,-3807.6037,0.00028573,2]
[422504520,1779003032000,-1000.0,0.0002804,2]
[422504522,1779003032000,-689.87,0.00028182,2]
[422504531,1779003032000,-689.87,0.00028887,2]
[422504532,1779003032000,-159.3,0.00028903,7]
[422504533,1779003032000,-157.58,0.00028906,7]
[422504510,1779003032000,-500.0,0.00027761,2]
[422504526,1779003032000,-166.66,0.00028776,30]
[422504502,1779003032000,-208.48490792,0.00027138,2]
[422504488,1779003032000,-155.32,0.00025523,2]
[422504498,1779003032000,-166.66,0.00027099,30]
[422504535,1779003032000,-159.3,0.00028933,30]
[422504472,1779003032000,-153.64,0.00025234,2]
[422504474,1779003032000,-158.39,0.0002544,2]
[422504473,1779003032000,-155.32,0.00025234,2]
[422504476,1779003032000,-5304.91,0.000255,2]
[422504478,1779003032000,-2330.56,0.000255,2]
[422504479,1779003032000,-299.99,0.000255,7]
[422504475,1779003032000,-160.33,0.000255,2]
[422504495,1779003032000,-15919.21105798,0.00027092,2]
[422504477,1779003032000,-640.17,0.000255,2]
[422504481,1779003032000,-7102.21,0.000255,2]
[422504486,1779003032000,-153.64,0.00025523,2]
[422504492,1779003032000,-160.33,0.00025922,2]
[422504494,1779003032000,-166.66,0.00026541,30]
[422504490,1779003032000,-1213.01,0.00025786,2]
[422504512,1779003032000,-490.35,0.00027804,2]
[422504500,1779003032000,-215.0785988,0.00027138,2]
[422504508,1779003032000,-165.9,0.00027682,2]
[422504483,1779003032000,-150.99,0.000255,2]
[422504536,1779003032000,-156.73,0.00028933,2]
[422504506,1779003032000,-166.66,0.00027658,30]
[422504542,1779003032000,-159.3,0.00028963,2]
[422504563,1779003032000,-158.39,0.00029193,30]
[422504564,1779003032000,-159.3,0.00029202,30]
[422504558,1779003032000,-157.58,0.00029143,2]
[422504562,1779003032000,-159.3,0.00029173,7]
[422504566,1779003032000,-166.29,0.00029232,30]
[422504565,1779003032000,-157.58,0.00029203,30]
[422504561,1779003032000,-157.58,0.00029173,7]
[422504560,1779003032000,-158.39,0.00029154,7]
[422504567,1779003032000,-158.48,0.00029232,2]
[422504568,1779003032000,-157.67,0.00029232,2]
[422504572,1779003032000,-166.66,0.00029334,30]
[422504570,1779003032000,-159.33,0.00029232,2]
[422504573,1779003032000,-1347.56185877,0.00029377,2]
[422504574,1779003032000,-809.58057949,0.00029377,2]
[422504575,1779003032000,-150.0,0.00029534,2]
[422504576,1779003032000,-476.41942051,0.00029571,10]
[422504577,1779003032000,-268.95559825,0.00029571,10]
[422504538,1779003032000,-157.22,0.00028937,2]
[422504571,1779003032000,-156.73,0.00029232,7]
[422504559,1779003032000,-159.3,0.00029143,2]
[422504569,1779003032000,-157.23,0.00029232,7]
[422504557,1779003032000,-158.39,0.00029115,2]
[422504578,1779003032000,-816.39367816,0.00029571,10]
[422504540,1779003032000,-158.39,0.00028958,30]
[422504537,1779003032000,-157.58,0.00028936,30]
[422504541,1779003032000,-270.45,0.00028961,2]
[422504539,1779003032000,-282.41,0.00028957,2]
[422504544,1779003032000,-159.3,0.00028993,7]
[422504554,1779003032000,-157.58,0.00029084,7]
[422504545,1779003032000,-157.58,0.00028995,7]
[422504547,1779003032000,-159.3,0.00029023,30]
[422504543,1779003032000,-157.58,0.00028965,2]
[422504550,1779003032000,-159.3,0.00029053,2]
[422504548,1779003032000,-157.58,0.00029025,30]
[422504546,1779003032000,-158.39,0.00028997,2]
[422504551,1779003032000,-157.58,0.00029054,2]
[422504549,1779003032000,-158.39,0.00029036,7]
[422504553,1779003032000,-159.3,0.00029083,7]
[422504552,1779003032000,-158.39,0.00029076,30]
[422504555,1779003032000,-159.3,0.00029113,30]
[422504556,1779003032000,-157.58,0.00029114,30]
[422504615,1779003038000,-153.47,0.00029204,2]
[422504613,1779003038000,-153.47,0.00029176,30]
[422504612,1779003038000,-158.17,0.00029172,7]
[422504611,1779003038000,-153.47,0.00029148,7]
[422504610,1779003038000,-158.17,0.00029142,2]
[422504601,1779003038000,-153.47,0.00029008,30]
[422504607,1779003038000,-153.47,0.00029092,30]
[422504604,1779003038000,-158.17,0.00029051,2]
[422504614,1779003038000,-158.17,0.00029202,30]
[422504606,1779003038000,-158.17,0.00029082,7]
[422504620,1779003038000,-2067.92,0.00029581,10]
[422504627,1779003038000,-188.36695161,0.000301,2]
[422504617,1779003038000,-158.24,0.00029232,2]
[422504618,1779003038000,-153.58,0.00029232,7]
[422504616,1779003038000,-158.75,0.00029232,7]
[422504622,1779003038000,-150.0,0.00029657,2]
[422504621,1779003038000,-689.87,0.00029591,2]
[422504623,1779003038000,-1084.42,0.00029895,10]
[422504625,1779003038000,-165.9,0.00029989,2]
[422504628,1779003038000,-188.36695159,0.000301,2]
[422504626,1779003038000,-2108.92838715,0.00030045,2]
[422504609,1779003038000,-153.47,0.0002912,2]
[422504619,1779003038000,-161.49130308,0.00029571,10]
[422504608,1779003038000,-158.17,0.00029112,30]
[422504584,1779003038000,-154.22,0.00024946,7]
[422504602,1779003038000,-158.17,0.00029021,30]
[422504580,1779003038000,-197.44,0.00024658,2]
[422504581,1779003038000,-158.75,0.00024658,2]
[422504579,1779003038000,-150.0,0.00024647,2]
[422504583,1779003038000,-161.15,0.00024658,2]
[422504635,1779003038000,-1000.0,0.00030743,18]
[422504582,1779003038000,-154.22,0.00024658,2]
[422504585,1779003038000,-161.15,0.00024946,7]
[422504587,1779003038000,-158.75,0.00027397,7]
[422504586,1779003038000,-154.22,0.00025234,2]
[422504588,1779003038000,-1500.0,0.00027397,2]
[422504590,1779003038000,-158.17,0.00028871,2]
[422504589,1779003038000,-153.47,0.00028868,2]
[422504592,1779003038000,-158.17,0.00028901,7]
[422504591,1779003038000,-153.47,0.00028896,7]
[422504594,1779003038000,-158.74,0.00028929,2]
[422504596,1779003038000,-153.47,0.00028952,2]
[422504593,1779003038000,-153.47,0.00028924,30]
[422504597,1779003038000,-263.25,0.00028954,2]
[422504595,1779003038000,-158.17,0.00028931,30]
[422504598,1779003038000,-158.17,0.00028961,2]
[422504599,1779003038000,-153.47,0.0002898,7]
[422504600,1779003038000,-158.17,0.00028991,7]
[422504603,1779003038000,-153.47,0.00029036,2]
[422504605,1779003038000,-153.47,0.00029064,7]
[422504629,1779003038000,-197.45,0.00030136,7]
[422504624,1779003038000,-2236.95670848,0.00029925,2]
[422504631,1779003038000,-166.57,0.00030137,2]
[422504658,1779003038000,-165.9,0.00032296,2]
[422504661,1779003038000,-1773.74756027,0.00032989,2]
[422504660,1779003038000,-19456.97350382,0.00032989,2]
[422504664,1779003038000,-504.0,0.00033609,31]
[422504663,1779003038000,-176.33,0.00033415,2]
[422504666,1779003038000,-504.0,0.00033691,31]
[422504665,1779003038000,-504.0,0.0003365,31]
[422504672,1779003038000,-314.58468507,0.0003412,2]
[422504667,1779003038000,-166.0,0.00033732,31]
[422504673,1779003038000,-181.507212,0.0003412,2]
[422504671,1779003038000,-1773.74756027,0.00033978,2]
[422504659,1779003038000,-150.0,0.00032562,2]
[422504675,1779003038000,-150.0,0.0003419,2]
[422504670,1779003038000,-19456.97350382,0.00033978,2]
[422504674,1779003038000,-5000.0,0.0003412,2]
[422504676,1779003038000,-12532.0,0.00034192,2]
[422504677,1779003038000,-1000.0,0.00034199,21]
[422504678,1779003038000,-1500000.0,0.0003422,2]
[422504679,1779003038000,-1768.78993529,0.0003422,2]
[422504682,1779003038000,-166.57,0.00034919,57]
[422504683,1779003038000,-19456.97350382,0.00034967,2]
[422504680,1779003038000,-165.9,0.00034603,2]
[422504632,1779003038000,-689.87,0.00030296,2]
[422504681,1779003038000,-269.17770932,0.00034795,2]
[422504668,1779003038000,-197.81059483,0.00033773,31]
[422504656,1779003038000,-1000.0,0.00032109,22]
[422504669,1779003038000,-500.0,0.00033863,2]
[422504655,1779003038000,-169.29,0.000321,7]
[422504634,1779003038000,-2319.72410669,0.00030473,2]
[422504662,1779003038000,-1000.0,0.00033171,34]
[422504636,1779003038000,-2077.7054625,0.00030869,21]
[422504633,1779003038000,-517.07419315,0.00030439,3]
[422504638,1779003038000,-1693.45332783,0.00030908,2]
[422504637,1779003038000,-237.26041992,0.00030869,21]
[422504640,1779003038000,-150.0,0.00031011,2]
[422504639,1779003038000,-689.87,0.00031,2]
[422504641,1779003038000,-1122.73307353,0.00031021,2]
[422504642,1779003038000,-412.22082144,0.00031459,2]
[422504643,1779003038000,-2500.0,0.00031795,2]
[422504648,1779003038000,-19456.97350382,0.00032,2]
[422504630,1779003038000,-158.75,0.00030136,30]
[422504653,1779003038000,-468.2230542,0.00032099,120]
[422504645,1779003038000,-2598.4335569,0.00031885,2]
[422504644,1779003038000,-8224.515254,0.00031885,2]
[422504646,1779003038000,-1000.0,0.00031894,25]
[422504649,1779003038000,-1773.74756035,0.00032,2]
[422504650,1779003038000,-500.0,0.00032099,120]
[422504652,1779003038000,-500.0,0.00032099,120]
[422504651,1779003038000,-500.0,0.00032099,120]
[422504654,1779003038000,-619968.68074479,0.000321,2]
[422504657,1779003038000,-231.88772029,0.00032234,7]
[422504647,1779003038000,-154.05302279,0.00032,12]
[422504722,1779003039000,-200.0,0.00035998,30]
[422504721,1779003039000,-537.6845,0.00035998,30]
[422504719,1779003039000,-168.3888056,0.00035998,30]
[422504720,1779003039000,-500.0,0.00035998,30]
[422504712,1779003039000,-518.5,0.00035998,30]
[422504718,1779003039000,-1107.63007,0.00035998,30]
[422504715,1779003039000,-500.0,0.00035998,30]
[422504716,1779003039000,-559.19188,0.00035998,30]
[422504714,1779003039000,-162.380719,0.00035998,30]
[422504713,1779003039000,-200.0,0.00035998,30]
[422504717,1779003039000,-151.0,0.00035998,30]
[422504723,1779003039000,-579.88197956,0.00035998,30]
[422504724,1779003039000,-151.0,0.00035998,30]
[422504728,1779003039000,-601.3376128,0.00035998,30]
[422504726,1779003039000,-620.0,0.00035998,30]
[422504725,1779003039000,-1148.61238259,0.00035998,30]
[422504730,1779003039000,-500.0,0.00035998,30]
[422504729,1779003039000,-200.0,0.00035998,30]
[422504732,1779003039000,-174.61919141,0.00035998,30]
[422504739,1779003039000,-181.08010149,0.00035998,30]
[422504734,1779003039000,-642.94,0.00035998,30]
[422504737,1779003039000,-200.0,0.00035998,30]
[422504736,1779003039000,-500.0,0.00035998,30]
[422504731,1779003039000,-151.0,0.00035998,30]
[422504727,1779003039000,-557.5788265,0.00035998,30]
[422504710,1779003039000,-151.0,0.00035998,30]
[422504686,1779003039000,-1223.0,0.00035678,2]
[422504708,1779003039000,-500.0,0.00035998,30]
[422504733,1779003039000,-1191.11104075,0.00035998,30]
[422504688,1779003039000,-3558.235,0.00035678,2]
[422504687,1779003039000,-1354.0,0.00035678,2]
[422504684,1779003039000,-1773.74756027,0.00034967,2]
[422504685,1779003039000,-1270.0,0.00035678,2]
[422504690,1779003039000,-346.0,0.0003575,5]
[422504689,1779003039000,-435.0,0.0003575,5]
[422504691,1779003039000,-150.0,0.00035899,2]
[422504693,1779003039000,-1773.74756027,0.00035956,2]
[422504692,1779003039000,-19456.97350382,0.00035956,2]
[422504698,1779003039000,-151.0,0.00035998,30]
[422504694,1779003039000,-246.78,0.0003599,39]
[422504695,1779003039000,-330.0,0.0003599,39]
[422504697,1779003039000,-6888.0,0.00035998,30]
[422504696,1779003039000,-1109.37054964,0.00035997,30]
[422504699,1779003039000,-200.0,0.00035998,30]
[422504702,1779003039000,-151.0,0.00035998,30]
[422504701,1779003039000,-520.0,0.00035998,30]
[422504705,1779003039000,-500.0,0.00035998,30]
[422504703,1779003039000,-1030.0,0.00035998,30]
[422504700,1779003039000,-500.0,0.00035998,30]
[422504704,1779003039000,-2625.15855112,0.00035998,30]
[422504706,1779003039000,-156.587,0.00035998,30]
[422504707,1779003039000,-200.0,0.00035998,30]
[422504709,1779003039000,-539.24,0.00035998,30]
[422504711,1779003039000,-1068.11,0.00035998,30]
[422504740,1779003039000,-1235.18214925,0.00035998,30]
[422504793,1779003039000,-1000.0,0.00035998,30]
[422504741,1779003039000,-666.72878,0.00035998,30]
[422504769,1779003039000,-500.0,0.00035998,30]
[422504774,1779003039000,-500.0,0.00035998,30]
[422504771,1779003039000,-500.0,0.00035998,30]
[422504772,1779003039000,-151.0,0.00035998,30]
[422504777,1779003039000,-500.0,0.00035998,30]
[422504776,1779003039000,-151.0,0.00035998,30]
[422504775,1779003039000,-500.0,0.00035998,30]
[422504773,1779003039000,-151.0,0.00035998,30]
[422504778,1779003039000,-151.0,0.00035998,30]
[422504779,1779003039000,-151.0,0.00035998,30]
[422504780,1779003039000,-500.0,0.00035998,30]
[422504791,1779003039000,-151.0,0.00035998,30]
[422504792,1779003039000,-500.0,0.00035998,30]
[422504782,1779003039000,-500.0,0.00035998,30]
[422504788,1779003039000,-296.36680416,0.00035998,30]
[422504786,1779003039000,-518.5,0.00035998,30]
[422504784,1779003039000,-1000.0,0.00035998,30]
[422504789,1779003039000,-500.0,0.00035998,30]
[422504790,1779003039000,-156.587,0.00035998,30]
[422504794,1779003039000,-537.6845,0.00035998,30]
[422504796,1779003039000,-500.0,0.00035998,30]
[422504798,1779003039000,-151.0,0.00035998,30]
[422504797,1779003039000,-162.380719,0.00035998,30]
[422504795,1779003039000,-152.0,0.00035998,30]
[422504735,1779003039000,-623.58710448,0.00035998,30]
[422504770,1779003039000,-151.0,0.00035998,30]
[422504768,1779003039000,-151.0,0.00035998,30]
[422504781,1779003039000,-151.0,0.00035998,30]
[422504765,1779003039000,-500.0,0.00035998,30]
[422504767,1779003039000,-500.0,0.00035998,30]
[422504743,1779003039000,-151.0,0.00035998,30]
[422504742,1779003039000,-646.65982734,0.00035998,30]
[422504744,1779003039000,-500.0,0.00035998,30]
[422504745,1779003039000,-200.0,0.00035998,30]
[422504746,1779003039000,-187.78006525,0.00035998,30]
[422504747,1779003039000,-691.39774486,0.00035998,30]
[422504748,1779003039000,-670.58624095,0.00035998,30]
[422504754,1779003039000,-716.97946142,0.00035998,30]
[422504749,1779003039000,-151.0,0.00035998,30]
[422504753,1779003039000,-194.72792766,0.00035998,30]
[422504752,1779003039000,-200.0,0.00035998,30]
[422504751,1779003039000,-1280.88388878,0.00035998,30]
[422504738,1779003039000,-151.0,0.00035998,30]
[422504761,1779003039000,-201.93286098,0.00035998,30]
[422504755,1779003039000,-695.39793187,0.00035998,30]
[422504756,1779003039000,-151.0,0.00035998,30]
[422504758,1779003039000,-200.0,0.00035998,30]
[422504757,1779003039000,-500.0,0.00035998,30]
[422504760,1779003039000,-151.0,0.00035998,30]
[422504763,1779003039000,-151.0,0.00035998,30]
[422504759,1779003039000,-1328.27659266,0.00035998,30]
[422504750,1779003039000,-500.0,0.00035998,30]
[422504762,1779003039000,-500.0,0.00035998,30]
[422504764,1779003039000,-151.0,0.00035998,30]
[422504766,1779003039000,-151.0,0.00035998,30]
[422504835,1779003040000,-269.917619,0.00035998,30]
[422504823,1779003040000,-152.0,0.00035998,30]
[422504838,1779003040000,-160.83711238,0.00035998,30]
[422504839,1779003040000,-152.0,0.00035998,30]
[422504830,1779003040000,-152.0,0.00035998,30]
[422504829,1779003040000,-251.0,0.00035998,30]
[422504832,1779003040000,-260.287,0.00035998,30]
[422504833,1779003040000,-152.0,0.00035998,30]
[422504831,1779003040000,-500.0,0.00035998,30]
[422504828,1779003040000,-500.0,0.00035998,30]
[422504837,1779003040000,-500.0,0.00035998,30]
[422504834,1779003040000,-500.0,0.00035998,30]
[422504836,1779003040000,-152.0,0.00035998,30]
[422504847,1779003040000,-500.0,0.00035998,30]
[422504841,1779003040000,-152.0,0.00035998,30]
[422504843,1779003040000,-152.0,0.00035998,30]
[422504844,1779003040000,-500.0,0.00035998,30]
[422504852,1779003040000,-152.0,0.00035998,30]
[422504846,1779003040000,-163.3942781,0.00035998,30]
[422504850,1779003040000,-152.0,0.00035998,30]
[422504842,1779003040000,-500.0,0.00035998,30]
[422504849,1779003040000,-500.0,0.00035998,30]
[422504845,1779003040000,-152.0,0.00035998,30]
[422504848,1779003040000,-152.0,0.00035998,30]
[422504851,1779003040000,-151.0,0.00035998,30]
[422504840,1779003040000,-500.0,0.00035998,30]
[422504825,1779003040000,-500.0,0.00035998,30]
[422504853,1779003040000,-156.587,0.00035998,30]
[422504824,1779003040000,-194.72792766,0.00035998,30]
[422504799,1779003040000,-500.0,0.00035998,30]
[422504803,1779003040000,-500.0,0.00035998,30]
[422504800,1779003040000,-1000.0,0.00035998,30]
[422504802,1779003040000,-152.0,0.00035998,30]
[422504804,1779003040000,-168.3888056,0.00035998,30]
[422504801,1779003040000,-557.5788265,0.00035998,30]
[422504805,1779003040000,-151.0,0.00035998,30]
[422504807,1779003040000,-1000.0,0.00035998,30]
[422504806,1779003040000,-500.0,0.00035998,30]
[422504808,1779003040000,-378.02970455,0.00035998,30]
[422504809,1779003040000,-152.0,0.00035998,30]
[422504810,1779003040000,-500.0,0.00035998,30]
[422504812,1779003040000,-500.0,0.00035998,30]
[422504813,1779003040000,-339.12272649,0.00035998,30]
[422504811,1779003040000,-174.61919141,0.00035998,30]
[422504816,1779003040000,-500.0,0.00035998,30]
[422504814,1779003040000,-152.0,0.00035998,30]
[422504815,1779003040000,-181.08010149,0.00035998,30]
[422504817,1779003040000,-500.0,0.00035998,30]
[422504819,1779003040000,-300.14249605,0.00035998,30]
[422504820,1779003040000,-187.78006525,0.00035998,30]
[422504821,1779003040000,-500.0,0.00035998,30]
[422504822,1779003040000,-500.0,0.00035998,30]
[422504818,1779003040000,-152.0,0.00035998,30]
[422504827,1779003040000,-201.93286101,0.00035998,30]
[422504826,1779003040000,-152.0,0.00035998,30]
[422504855,1779003040000,-162.380719,0.00035998,30]
[422504883,1779003040000,-300.0,0.00036386,2]
[422504854,1779003040000,-152.0,0.00035998,30]
[422504885,1779003040000,-300.0,0.00036386,2]
[422504887,1779003040000,-1067.39759447,0.00036386,2]
[422504888,1779003040000,-893.8052833,0.00036386,2]
[422504891,1779003040000,-301.92446648,0.00036386,2]
[422504892,1779003040000,-300.0,0.00036386,2]
[422504890,1779003040000,-300.0,0.00036386,2]
[422504893,1779003040000,-300.70672347,0.00036386,2]
[422504894,1779003040000,-300.0,0.00036386,2]
[422504889,1779003040000,-726.3731759,0.00036386,2]
[422504895,1779003040000,-300.0,0.00036386,2]
[422504897,1779003040000,-949.41386656,0.00036386,2]
[422504901,1779003040000,-1913.25849317,0.00036386,2]
[422504912,1779003040000,-1791.55036629,0.00036386,2]
[422504903,1779003040000,-344.12979214,0.00036386,2]
[422504911,1779003040000,-864.84573435,0.00036386,2]
[422504909,1779003040000,-1147.71030809,0.00036386,2]
[422504914,1779003040000,-300.98075791,0.00036386,2]
[422504916,1779003040000,-300.0,0.00036386,2]
[422504907,1779003040000,-300.0,0.00036386,2]
[422504906,1779003040000,-527.12281632,0.00036386,2]
[422504913,1779003040000,-332.48367818,0.00036386,2]
[422504915,1779003040000,-311.04198967,0.00036386,2]
[422504910,1779003040000,-309.72976467,0.00036386,2]
[422504918,1779003040000,-300.0,0.00036386,2]
[422504857,1779003040000,-152.0,0.00035998,30]
[422504882,1779003040000,-300.0,0.00036386,2]
[422504881,1779003040000,-492.91797782,0.00036386,2]
[422504899,1779003040000,-300.0,0.00036386,2]
[422504886,1779003040000,-527.9795525,0.00036386,2]
[422504884,1779003040000,-604.73492277,0.00036386,2]
[422504859,1779003040000,-152.0,0.00035998,30]
[422504856,1779003040000,-168.38880561,0.00035998,30]
[422504861,1779003040000,-162.380719,0.00035998,30]
[422504863,1779003040000,-174.61919141,0.00035998,30]
[422504862,1779003040000,-168.3888056,0.00035998,30]
[422504860,1779003040000,-156.587,0.00035998,30]
[422504864,1779003040000,-181.08010149,0.00035998,30]
[422504865,1779003040000,-187.78006525,0.00035998,30]
[422504867,1779003040000,-245.69519349,0.00035998,30]
[422504871,1779003040000,-151.0,0.00035998,30]
[422504870,1779003040000,-151.0,0.00035998,30]
[422504866,1779003040000,-194.72792766,0.00035998,30]
[422504858,1779003040000,-151.0,0.00035998,30]
[422504877,1779003040000,-33183.3746,0.00036301,2]
[422504873,1779003040000,-224.0,0.00036193,30]
[422504872,1779003040000,-153.32259511,0.00035998,30]
[422504869,1779003040000,-151.0,0.00035998,30]
[422504868,1779003040000,-151.0,0.00035998,30]
[422504875,1779003040000,-182.0,0.00036227,30]
[422504876,1779003040000,-173.52,0.00036235,120]
[422504879,1779003040000,-373.31533548,0.00036301,2]
[422504874,1779003040000,-161.0,0.00036193,30]
[422504878,1779003040000,-2000.0,0.00036301,2]
[422504917,1779003040000,-464.05309097,0.00036386,2]
[422504880,1779003040000,-227.2771,0.00036305,2]
[422504951,1779003041000,-300.0,0.00036386,2]
[422504946,1779003041000,-300.0,0.00036386,2]
[422504953,1779003041000,-1913.25849317,0.00036386,2]
[422504954,1779003041000,-300.0,0.00036386,2]
[422504952,1779003041000,-949.41386656,0.00036386,2]
[422504960,1779003041000,-864.84573435,0.00036386,2]
[422504958,1779003041000,-1147.71030809,0.00036386,2]
[422504949,1779003041000,-300.70672347,0.00036386,2]
[422504961,1779003041000,-311.04198967,0.00036386,2]
[422504950,1779003041000,-300.0,0.00036386,2]
[422504955,1779003041000,-344.12979214,0.00036386,2]
[422504959,1779003041000,-309.72976467,0.00036386,2]
[422504962,1779003041000,-300.0,0.00036386,2]
[422504964,1779003041000,-300.0,0.00036386,2]
[422504956,1779003041000,-527.12281632,0.00036386,2]
[422504963,1779003041000,-464.05309097,0.00036386,2]
[422504965,1779003041000,-577.47815809,0.00036386,2]
[422504966,1779003041000,-452.10208933,0.00036386,2]
[422504967,1779003041000,-300.0,0.00036386,2]
[422504974,1779003041000,-300.0,0.00036386,2]
[422504968,1779003041000,-300.0,0.00036386,2]